bitfinex-derivatives/quotes_SOLF0:USTF0_20250907
["timestamp","ask_amount","ask_price","bid_price","bid_amount"]
[1757217693277,7.55,203.07,203.04,1.26]
[1757217693775,8.30263247,203.08,203.04,1.26]
[1757217693971,7.55,203.07,203.04,1.26]
[1757217694168,8.30263247,203.08,203.04,1.26]
[1757217694368,7.55,203.07,203.04,1.26]
[1757217694775,8.30263247,203.08,203.01,1.53765097]
[1757217694973,7.55,203.07,203.02,5.85360486]
[1757217695176,8.30263247,203.08,203.03,5.85360486]
[1757217695376,7.55,203.07,203.04,4.59360486]
[1757217695675,8.30263247,203.08,203.03,1.26]
[1757217695877,7.55,203.07,203.04,4.59382227]
[1757217696078,7.55,203.07,203.03,1.26]
[1757217696281,7.55,203.07,203.04,4.59420936]
[1757217696480,8.30263247,203.08,203.03,1.26]
[1757217696681,7.55,203.07,203.04,4.59426291]
[1757217696881,8.30263247,203.08,203.03,1.26]
[1757217697082,7.55,203.07,203.04,4.59426291]
[1757217697287,8.30263247,203.08,203.03,1.26]
[1757217697584,7.55,203.07,203.04,4.59429162]
[1757217697784,8.30263247,203.08,203.01,1.53765097]
[1757217697981,15.85263247,203.08,203.03,1.26]
[1757217698283,7.55,203.07,203.04,5.85429162]
[1757217698479,7.55,203.07,203.04,1.26]
[1757217698679,8.30263247,203.08,203.04,1.26]
[1757217698885,7.55,203.08,203.04,1.26]
[1757217699386,7.55,203.09,203.04,1.26]
[1757217700282,15.85263247,203.09,203.04,1.26]
[1757217701988,15.85263247,203.09,203.05,4.60228918]
[1757217702183,15.85263247,203.09,203.06,4.60228918]
[1757217702481,15.85263247,203.09,203.04,1.26]
[1757217702676,15.85263247,203.09,203.05,4.602452]
[1757217702883,15.85263247,203.09,203.06,4.602452]
[1757217703089,15.85263247,203.09,203.02,1.53765097]
[1757217703289,15.85263247,203.09,203.03,9.35215676]
[1757217703485,15.85263247,203.09,203.04,4.60259446]
[1757217703686,15.85263247,203.09,203.05,4.60259446]
[1757217703984,15.85263247,203.09,203.06,4.60259446]
[1757217704185,15.85263247,203.09,203.02,1.53765097]
[1757217704386,15.85263247,203.09,203.03,9.35259011]
[1757217704592,15.85263247,203.09,203.04,4.60280773]
[1757217704786,15.85263247,203.09,203.05,4.60280773]
[1757217705089,15.85263247,203.09,203.06,4.60280773]
[1757217705291,15.85263247,203.09,203.02,1.53765097]
[1757217705490,15.85263247,203.09,203.03,9.35264042]
[1757217705689,15.85263247,203.09,203.04,4.60283249]
[1757217705881,15.85263247,203.09,203.05,4.60283249]
[1757217706187,15.85263247,203.09,203.06,4.60283249]
[1757217706388,15.85263247,203.09,203.02,1.53765097]
[1757217706686,15.85263247,203.09,203.03,9.35276543]
[1757217706886,7.55,203.08,203.05,1.26]
[1757217707086,7.55,203.08,203.06,4.60289401]
[1757217707289,7.55,203.08,203.05,1.26]
[1757217707491,7.55,203.08,203.06,4.60297565]
[1757217707692,7.55,203.08,203.04,1.53765097]
[1757217707892,7.55,203.08,203.06,1.26]
[1757217709693,8.30263247,203.1,203.07,1.26]
[1757217709992,8.17,203.11,203.08,10.69313131]
[1757217710186,8.17,203.13,203.09,9.43313131]
[1757217710383,8.17,203.13,203.1,4.60089825]
[1757217710585,8.17,203.13,203.08,1.26]
[1757217710795,8.17,203.13,203.09,4.59320101]
[1757217710993,8.17,203.13,203.1,4.59320101]
[1757217711193,8.17,203.13,203.08,1.26]
[1757217711392,1.53765097,203.14,203.09,4.59109098]
[1757217711589,8.17,203.13,203.1,4.59109098]
[1757217711797,8.17,203.13,203.08,1.26]
[1757217712094,8.17,203.13,203.09,4.59109098]
[1757217712291,8.17,203.13,203.1,4.59109098]
[1757217712494,1.53765097,203.14,203.08,1.26]
[1757217712694,8.17,203.13,203.09,4.58987589]
[1757217712991,8.17,203.13,203.1,4.58987589]
[1757217713196,8.17,203.13,203.08,1.26]
[1757217713391,8.17,203.13,203.09,4.58870031]
[1757217713596,8.17,203.13,203.08,1.26]
[1757217713798,1.53765097,203.14,203.09,4.58824075]
[1757217713992,8.17,203.13,203.08,1.26]
[1757217714290,1.53765097,203.14,203.09,4.58823104]
[1757217714496,1.53765097,203.14,203.08,1.26]
[1757217714696,8.17,203.13,203.09,4.58747824]
[1757217714896,1.53765097,203.14,203.08,1.26]
[1757217715193,9.84028344,203.16,203.1,1.26]
[1757217715496,8.17,203.15,203.1,1.26]
[1757217715889,9.84028344,203.16,203.1,1.26]
[1757217716394,8.17,203.15,203.1,1.26]
[1757217716597,8.17,203.15,202.99,4.13725584]
[1757217716598,8.17,203.15,203.03,4.4319]
[1757217716791,8.17,203.15,203.09,1.53765097]
[1757217726308,8.17,203.15,203.09,2.79765097]
[1757217730313,8.17,203.15,203.09,1.26]
[1757217730513,8.17,203.15,203.09,2.79765097]
[1757217732014,8.17,203.15,203.13,1.53765097]
[1757217732214,8.17,203.15,203.13,2.79765097]
[1757217733410,8.17,203.15,203.13,1.26]
[1757217734506,8.17,203.15,203.11,1.26]
[1757217735014,8.17,203.15,203.12,1.26]
[1757217735213,8.17,203.15,203.11,1.26]
[1757217735714,8.17,203.15,203.1,2.39998208]
[1757217735915,8.17,203.15,203.11,1.26]
[1757217736323,8.17,203.15,203.12,4.57985175]
[1757217736621,8.17,203.15,203.13,5.83985175]
[1757217736816,8.17,203.15,203.13,1.26]
[1757217740920,8.17,203.22,203.1,2.39998208]
[1757217741226,8.17,203.19,203.11,4.5728192]
[1757217741419,8.17,203.19,203.09,3.65998208]
[1757217741615,8.17,203.19,203.1,4.57425862]
[1757217741815,8.17,203.19,203.11,4.57425862]
[1757217742119,8.17,203.19,203.09,3.65998208]
[1757217742422,8.17,203.19,203.1,4.57425862]
[1757217742616,8.17,203.16,203.06,1.26]
[1757217742820,8.17,203.16,203.07,4.5753581]
[1757217743016,8.17,203.16,202.98,4.433]
[1757217743215,8.17,203.13,203.02,1.26]
[1757217743423,8.17,203.13,203.03,4.5753581]
[1757217743626,8.17,203.13,203.02,1.26]
[1757217743827,8.17,203.13,203.03,4.57865467]
[1757217744123,8.17,203.13,203.02,1.26]
[1757217744325,8.17,203.13,203.03,4.57865467]
[1757217744523,8.17,203.13,203.02,1.26]
[1757217744723,8.17,203.13,203.03,4.57909599]
[1757217744924,8.17,203.13,203.02,1.26]
[1757217745225,8.17,203.13,203.03,4.57932576]
[1757217745428,8.17,203.13,203.02,1.26]
[1757217745627,8.17,203.13,203.03,4.5797838]
[1757217745928,8.17,203.13,203.02,1.26]
[1757217746124,8.17,203.13,203.03,4.5791624]
[1757217746418,8.17,203.13,203.02,1.26]
[1757217746622,8.17,203.13,203.03,4.57963835]
[1757217746824,8.17,203.13,203.02,1.26]
[1757217747122,8.17,203.13,203.03,4.57963835]
[1757217747322,8.17,203.13,203.02,1.26]
[1757217747522,8.17,203.13,203.03,4.58013335]
[1757217747724,8.17,203.13,203.02,1.26]
[1757217748024,8.17,203.13,203.03,4.58013335]
[1757217748226,8.17,203.13,203.04,4.58054263]
[1757217748425,8.17,203.13,203.02,1.26]
[1757217748627,8.17,203.13,203.03,4.58064868]
[1757217748829,8.17,203.13,203.04,4.58064868]
[1757217749026,8.17,203.13,203.02,1.26]
[1757217749330,8.17,203.13,203.03,4.58087801]
[1757217749530,8.17,203.13,203.04,4.58087801]
[1757217749729,8.17,203.13,203.02,1.26]
[1757217749931,8.17,203.13,203.03,4.5814152]
[1757217750130,8.17,203.13,203.04,4.5814152]
[1757217750337,8.17,203.13,203.02,1.26]
[1757217750525,8.17,203.13,203.03,4.58197595]
[1757217750829,8.17,203.11,203.04,4.58197595]
[1757217751030,8.17,203.11,203.02,1.26]
[1757217751231,8.17,203.11,203.03,4.58197595]
[1757217751426,8.17,203.11,203.04,4.58197595]
[1757217751730,8.17,203.11,203.02,1.26]
[1757217751920,8.17,203.11,203.03,4.58256224]
[1757217752121,8.17,203.11,203.04,4.58256224]
[1757217752333,8.17,203.11,203.02,1.26]
[1757217752527,8.17,203.11,203.03,4.58317639]
[1757217752733,8.17,203.11,203.04,9.39586251]
[1757217752933,8.17,203.11,203.05,4.58317639]
[1757217753133,8.17,203.11,203.06,4.58317639]
[1757217753334,8.17,203.11,203.02,1.26]
[1757217753633,8.17,203.11,203.03,9.39718433]
[1757217753824,8.17,203.11,203.04,9.39718433]
[1757217754028,8.17,203.11,203.05,4.58382116]
[1757217754228,8.17,203.11,203.06,4.58382116]
[1757217754431,8.17,203.11,203.02,1.26]
[1757217754623,8.17,203.11,203.03,9.39857123]
[1757217754831,8.17,203.11,203.04,9.39857123]
[1757217755032,8.17,203.11,203.05,4.58449766]
[1757217755231,8.17,203.11,203.06,4.58449766]
[1757217755431,8.17,203.11,203.02,1.26]
[1757217755635,8.17,203.11,203.04,1.26]
[1757217755932,8.17,203.11,203.05,4.58421564]
[1757217756134,8.17,203.11,203.06,4.58421564]
[1757217756333,8.17,203.11,203.04,1.26]
[1757217756532,8.17,203.11,203.05,4.58395017]
[1757217756735,2.39998208,203.12,203.06,4.58395017]
[1757217756938,8.17,203.14,203.07,4.58395017]
[1757217757234,8.17,203.14,203.08,4.58395017]
[1757217757436,8.17,203.14,203.09,4.58395017]
[1757217757635,8.17,203.14,203.07,1.26]
[1757217757831,8.17,203.14,203.08,4.58199877]
[1757217758036,3.89998208,203.15,203.09,4.58199877]
[1757217758236,8.17,203.14,203.07,1.26]
[1757217758531,8.17,203.14,203.08,4.58199504]
[1757217758837,8.17,203.14,203.09,4.58199504]
[1757217759029,8.17,203.14,203.07,1.26]
[1757217759227,8.17,203.14,203.08,4.58199504]
[1757217759537,8.17,203.14,203.09,4.58199504]
[1757217759837,8.17,203.14,203.07,1.26]
[1757217760038,8.17,203.14,203.08,4.58199139]
[1757217760337,8.17,203.14,203.09,4.58199139]
[1757217760639,8.17,203.14,203.07,1.26]
[1757217760839,8.17,203.14,203.08,4.58198787]
[1757217761035,8.17,203.14,203.09,4.58198787]
[1757217761230,8.17,203.14,203.07,1.26]
[1757217761429,8.17,203.14,203.08,4.58198446]
[1757217761630,8.17,203.14,203.09,4.58198446]
[1757217761830,8.17,203.14,203.07,1.26]
[1757217762032,8.17,203.14,203.08,4.5819846]
[1757217762239,8.17,203.14,203.09,4.5819846]
[1757217762439,8.17,203.14,203.07,1.26]
[1757217762640,8.17,203.14,203.08,4.5819813]
[1757217762840,8.17,203.14,203.07,1.26]
[1757217763037,8.17,203.14,203.08,4.5819813]
[1757217763340,8.17,203.14,203.07,1.26]
[1757217763541,8.17,203.14,203.08,4.58197811]
[1757217763742,8.17,203.14,203.07,1.26]
[1757217763943,8.17,203.14,203.08,4.58216752]
[1757217764143,8.17,203.14,203.07,1.26]
[1757217764441,8.17,203.14,203.08,4.59596652]
[1757217764642,8.17,203.14,203.07,1.26]
[1757217764845,8.17,203.14,203.08,4.59622299]
[1757217765041,8.17,203.14,203.07,1.26]
[1757217765341,8.17,203.14,203.08,4.59622299]
[1757217765540,8.17,203.14,203.07,1.26]
[1757217765743,8.17,203.14,203.08,4.59646927]
[1757217765936,8.17,203.14,203.07,1.26]
[1757217766139,8.17,203.14,203.08,4.59646927]
[1757217766438,8.17,203.14,203.07,1.26]
[1757217766638,8.17,203.14,203.08,4.59646938]
[1757217766833,8.17,203.14,203.07,1.26]
[1757217767044,8.17,203.14,203.08,4.59646938]
[1757217767244,8.17,203.14,203.07,1.26]
[1757217767445,8.17,203.14,203.08,4.59670615]
[1757217767640,8.17,203.14,203.07,1.26]
[1757217767948,8.17,203.14,203.08,4.59646952]
[1757217768137,8.17,203.14,203.07,1.26]
[1757217768339,8.17,203.14,203.08,4.59646952]
[1757217768634,8.17,203.14,203.07,1.26]
[1757217768836,8.17,203.14,203.08,4.59663328]
[1757217769036,8.17,203.14,203.07,1.26]
[1757217769338,8.17,203.14,203.08,4.596446]
[1757217769540,8.17,203.14,203.07,1.26]
[1757217769836,8.17,203.14,203.08,4.59644409]
[1757217770036,8.17,203.14,203.07,1.26]
[1757217770244,8.17,203.14,203.08,4.59644547]
[1757217770445,8.17,203.14,203.07,1.26]
[1757217770744,8.17,203.14,203.08,4.59644358]
[1757217770945,8.17,203.14,203.07,1.26]
[1757217771147,8.17,203.14,203.08,4.59644358]
[1757217771346,8.17,203.14,203.07,1.26]
[1757217771547,8.17,203.14,203.08,4.59644049]
[1757217771748,8.17,203.14,203.07,1.26]
[1757217771949,8.17,203.14,203.08,4.59644049]
[1757217772249,8.17,203.14,203.07,1.26]
[1757217772448,8.17,203.14,203.08,4.59646028]
[1757217772652,8.17,203.14,203.07,1.26]
[1757217778748,8.17,203.14,203.03,1.26]
[1757217778954,7.36,203.11,203.04,4.59944937]
[1757217779155,7.36,203.11,203.05,4.59944937]
[1757217779352,7.36,203.11,203.03,1.26]
[1757217779552,7.36,203.11,203.04,4.59952263]
[1757217779752,7.36,203.11,203.05,4.59952263]
[1757217780052,7.36,203.11,203.03,1.26]
[1757217780251,7.36,203.11,203.04,4.59952538]
[1757217780454,7.36,203.11,203.05,4.59952538]
[1757217780654,7.36,203.11,203.03,1.26]
[1757217780951,7.36,203.11,203.04,4.59952538]
[1757217781255,7.36,203.11,203.05,4.59952538]
[1757217781457,7.36,203.11,203.03,1.26]
[1757217781656,7.36,203.11,203.04,4.60018346]
[1757217781954,7.36,203.11,203.05,4.60018346]
[1757217782155,7.36,203.11,203.03,1.26]
[1757217782354,7.36,203.11,203.04,4.60024679]
[1757217782554,7.36,203.11,203.05,4.60024679]
[1757217782755,7.36,203.11,203.06,4.60095072]
[1757217782955,7.36,203.11,203.07,4.60095072]
[1757217783158,7.36,203.11,203.03,1.26]
[1757217783460,2.39998208,203.12,203.04,9.34544068]
[1757217783758,7.36,203.11,203.05,4.60101968]
[1757217783946,7.36,203.11,203.06,4.60101968]
[1757217784153,7.36,203.11,203.07,4.60101968]
[1757217784352,7.36,203.11,203.08,4.60479145]
[1757217784656,7.36,203.11,203.03,1.26]
[1757217784852,2.39998208,203.12,203.04,9.35274991]
[1757217785054,7.36,203.11,203.05,9.35274991]
[1757217785254,7.36,203.11,203.06,4.60461825]
[1757217785559,7.36,203.11,203.07,4.60461825]
[1757217785759,7.36,203.11,203.08,4.60461825]
[1757217786056,7.36,203.11,203.03,1.26]
[1757217786255,2.39998208,203.12,203.04,9.35793883]
[1757217786456,2.39998208,203.12,203.05,9.35793883]
[1757217786660,7.36,203.11,203.06,4.60639872]
[1757217786854,7.36,203.11,203.07,4.60639872]
[1757217787157,7.36,203.11,203.08,4.60639872]
[1757217787360,7.36,203.11,203.03,1.26]
[1757217787561,7.36,203.11,203.04,9.3625319]
[1757217787860,7.36,203.11,203.05,9.3625319]
[1757217788053,7.36,203.11,203.06,9.3625319]
[1757217788361,7.36,203.11,203.03,1.26]
[1757217788558,2.39998208,203.12,203.04,9.36299695]
[1757217788754,2.39998208,203.12,203.05,9.36299695]
[1757217789054,7.36,203.11,203.06,9.36299695]
[1757217789249,7.36,203.11,203.07,4.60888856]
[1757217789454,7.36,203.11,203.08,4.60888856]
[1757217789754,7.36,203.11,203.09,4.60888856]
[1757217789952,7.36,203.11,203.03,1.26]
[1757217790151,7.36,203.11,203.04,9.36440385]
[1757217790356,2.39998208,203.12,203.05,9.36440385]
[1757217790553,2.39998208,203.12,203.06,9.36440385]
[1757217790757,7.36,203.11,203.07,4.6095811]
[1757217791065,7.36,203.11,203.08,4.6095811]
[1757217791264,7.36,203.11,203.09,4.6095811]
[1757217791465,7.36,203.11,203.03,1.26]
[1757217791664,2.39998208,203.12,203.04,9.3649702]
[1757217791861,7.36,203.11,203.05,9.3649702]
[1757217792166,7.36,203.11,203.06,9.3649702]
[1757217792361,7.36,203.11,203.07,4.60985988]
[1757217792561,7.36,203.11,203.08,4.60985988]
[1757217792756,7.36,203.11,203.03,1.26]
[1757217792965,7.36,203.11,203.04,9.36526876]
[1757217793266,7.36,203.11,203.05,10.62526876]
[1757217793465,2.39998208,203.12,203.06,9.36526876]
[1757217793764,2.39998208,203.12,203.07,4.61000684]
[1757217793964,7.36,203.11,203.08,4.61000684]
[1757217794265,7.36,203.11,203.05,1.26]
[1757217794464,7.36,203.11,203.06,9.35875169]
[1757217794664,7.36,203.11,203.07,4.60316954]
[1757217794863,2.39998208,203.12,203.08,4.60316954]
[1757217795061,47.73998208,203.18,203.01,2.39998208]
[1757217795062,7.36,203.11,203.09,4.60310234]
[1757217795261,7.36,203.11,203.1,4.60310234]
[1757217795966,7.36,203.11,203.07,1.26]
[1757217796161,7.36,203.14,203.08,6.02058267]
[1757217796363,7.36,203.14,203.1,1.26]
[1757217796660,7.36,203.14,203.08,1.53706963]
[1757217796661,7.36,203.14,203.11,5.74214943]
[1757217796967,7.36,203.14,203.11,1.26]
[1757217797760,1.53706963,203.17,203.11,1.26]
[1757217798555,7.36,203.16,203.11,1.26]
[1757217798757,1.53706963,203.17,203.11,1.26]
[1757217798957,7.36,203.16,203.11,1.26]
[1757217799261,7.36,203.16,203.1,1.53706963]
[1757217799464,7.36,203.16,203.11,4.52074575]
[1757217799764,7.36,203.16,203.1,1.53706963]
[1757217799963,7.36,203.16,203.11,4.52074575]
[1757217800168,7.36,203.16,203.1,1.53706963]
[1757217800468,7.36,203.16,203.11,4.52054486]
[1757217800661,7.36,203.16,203.1,1.53706963]
[1757217800859,7.36,203.16,203.11,4.52074471]
[1757217801066,7.36,203.16,203.1,1.53706963]
[1757217801265,7.36,203.16,203.11,4.52074471]
[1757217801466,7.36,203.16,203.1,1.53706963]
[1757217801664,7.36,203.16,203.11,4.52079686]
[1757217801966,7.36,203.16,203.1,1.53706963]
[1757217802167,7.36,203.16,203.11,4.52079686]
[1757217802361,7.36,203.16,203.1,1.53706963]
[1757217802563,7.36,203.16,203.11,4.52057043]
[1757217802862,7.36,203.16,203.1,2.79706963]
[1757217803166,7.36,203.16,203.1,1.26]
[1757217803570,7.36,203.16,203.11,4.52016769]
[1757217803868,7.36,203.16,203.1,1.26]
[1757217804172,1.53706963,203.17,203.11,4.52016769]
[1757217804359,7.78,203.16,203.09,1.26]
[1757217804559,7.78,203.16,203.1,4.51987146]
[1757217804769,1.53706963,203.17,203.11,4.51987146]
[1757217805064,7.78,203.16,203.09,1.26]
[1757217805262,7.78,203.16,203.1,4.51987223]
[1757217805567,1.53706963,203.17,203.11,4.51987223]
[1757217805866,7.78,203.16,203.09,1.26]
[1757217806069,7.78,203.16,203.1,4.51959301]
[1757217806368,7.78,203.16,203.11,4.51959301]
[1757217806570,7.78,203.16,203.09,1.26]
[1757217806872,7.78,203.16,203.1,4.51932887]
[1757217807169,7.78,203.16,203.11,4.51932887]
[1757217807377,7.78,203.16,203.09,1.26]
[1757217807670,7.78,203.16,203.1,4.51907862]
[1757217807970,7.78,203.16,203.11,4.51907862]
[1757217808169,7.78,203.16,203.09,1.26]
[1757217808364,7.78,203.16,203.1,4.51894932]
[1757217808564,7.78,203.16,203.11,4.51894932]
[1757217808765,7.78,203.16,203.09,1.26]
[1757217808965,7.78,203.16,203.1,4.51884126]
[1757217809261,7.78,203.16,203.11,4.51884126]
[1757217809466,7.78,203.16,203.09,1.26]
[1757217809770,7.78,203.16,203.1,4.5188335]
[1757217809971,7.78,203.16,203.11,4.5188335]
[1757217810175,7.78,203.13,203.04,1.25]
[1757217810367,127.30263247,203.18,203.05,13.25978081]
[1757217810368,1.53706963,203.11,203.05,13.25978081]
[1757217810667,1.53706963,203.11,203.06,9.27129395]
[1757217810866,1.53706963,203.11,203.04,2.78706963]
[1757217811068,7.78,203.1,203.05,10.40296349]
[1757217811267,7.78,203.1,203.06,10.40307339]
[1757217811468,7.78,203.1,203.05,1.25]
[1757217811661,1.53706963,203.13,203.07,1.25]
[1757217811867,7.78,203.12,203.07,1.25]
[1757217812068,1.53706963,203.13,203.07,1.25]
[1757217812573,7.78,203.12,203.07,1.25]
[1757217812765,1.53706963,203.13,203.07,1.25]
[1757217813173,7.78,203.12,203.07,1.25]
[1757217813367,1.53706963,203.13,203.07,1.25]
[1757217814574,7.78,203.12,203.07,1.25]
[1757217815069,1.53706963,203.13,203.07,1.25]
[1757217815372,7.78,203.12,203.07,1.25]
[1757217815571,1.53706963,203.13,203.07,1.25]
[1757217816074,7.78,203.12,203.07,1.25]
[1757217816274,1.53706963,203.13,203.07,1.25]
[1757217816469,7.78,203.12,203.07,1.25]
[1757217817176,1.53706963,203.13,203.07,1.25]
[1757217817377,7.78,203.12,203.07,1.25]
[1757217818074,7.78,203.12,203.06,1.25]
[1757217821769,1.53706963,203.13,203.07,1.53706963]
[1757217822274,7.78,203.12,203.07,2.78706963]
[1757217822777,1.53706963,203.13,203.08,5.64991628]
[1757217822978,7.78,203.12,203.08,1.25]
[1757217823173,1.53706963,203.13,203.08,1.25]
[1757217823779,7.78,203.14,203.08,1.25]
[1757217823980,7.78,203.14,203.07,1.53706963]
[1757217823981,1.53706963,203.15,203.09,9.15519047]
[1757217824276,1.53706963,203.15,203.1,5.64957066]
[1757217824575,7.78,203.14,203.1,1.25]
[1757217824879,1.53706963,203.15,203.1,1.25]
[1757217825080,7.78,203.14,203.1,1.25]
[1757217825277,1.53706963,203.15,203.1,1.25]
[1757217825780,7.78,203.14,203.1,1.25]
[1757217826179,1.53706963,203.15,203.1,1.25]
[1757217827678,7.78,203.14,203.1,1.25]
[1757217828585,7.78,203.14,203.07,2.78706963]
[1757217828883,7.78,203.14,203.08,9.1539515]
[1757217829086,1.53706963,203.15,203.09,10.4139515]
[1757217829280,8.01,203.14,203.1,9.1539515]
[1757217829485,8.01,203.14,203.09,1.26]
[1757217829686,8.01,203.14,203.1,4.39831245]
[1757217829880,8.01,203.14,203.09,1.26]
[1757217830090,8.01,203.14,203.1,4.39833482]
[1757217830288,8.01,203.14,203.09,1.26]
[1757217830585,8.01,203.14,203.1,4.39849681]
[1757217830786,8.01,203.14,203.09,1.26]
[1757217830986,1.53706963,203.15,203.1,4.39849681]
[1757217831182,1.53706963,203.15,203.09,1.26]
[1757217831488,1.53706963,203.15,203.1,4.39868824]
[1757217831682,8.01,203.14,203.09,1.26]
[1757217831882,8.01,203.14,203.1,4.39868824]
[1757217832086,8.01,203.14,203.09,1.26]
[1757217832289,1.53706963,203.15,203.1,4.39868824]
[1757217832488,1.53706963,203.15,203.09,1.26]
[1757217832689,8.01,203.14,203.09,1.26]
[1757217832990,1.53706963,203.15,203.09,1.26]
[1757217833180,8.01,203.14,203.09,1.26]
[1757217833790,1.53706963,203.15,203.09,1.26]
[1757217834186,8.01,203.14,203.09,1.26]
[1757217834382,1.53706963,203.15,203.09,1.26]
[1757217834591,8.01,203.14,203.08,1.26]
[1757217834785,8.01,203.14,203.09,4.39945962]
[1757217835092,1.53706963,203.15,203.09,1.26]
[1757217835389,8.01,203.14,203.09,1.26]
[1757217835784,1.53706963,203.15,203.09,1.26]
[1757217835982,8.01,203.14,203.09,1.26]
[1757217836589,1.53706963,203.15,203.09,1.26]
[1757217837090,8.01,203.14,203.09,1.26]
[1757217837483,1.53706963,203.15,203.09,1.26]
[1757217837690,8.01,203.14,203.09,1.26]
[1757217838289,8.01,203.14,203.1,4.40108952]
[1757217838481,1.53706963,203.15,203.09,1.26]
[1757217838682,8.01,203.14,203.1,4.40108952]
[1757217838889,1.53706963,203.15,203.09,1.26]
[1757217839191,8.01,203.14,203.1,4.40108952]
[1757217839385,8.01,203.14,203.09,1.26]
[1757217839583,1.53706963,203.15,203.1,4.40165424]
[1757217839786,8.01,203.14,203.09,1.26]
[1757217839982,8.01,203.14,203.1,4.4004371]
[1757217840292,8.01,203.14,203.09,1.26]
[1757217840493,1.53706963,203.15,203.1,4.40121417]
[1757217840693,1.53706963,203.15,203.09,1.26]
[1757217840888,1.53706963,203.15,203.1,4.40183454]
[1757217841090,1.53706963,203.15,203.09,1.26]
[1757217841286,1.53706963,203.15,203.1,4.40189153]
[1757217841491,8.01,203.14,203.09,1.26]
[1757217841689,1.53706963,203.15,203.1,4.40196925]
[1757217841987,8.01,203.14,203.09,1.26]
[1757217842190,8.01,203.14,203.1,4.40196925]
[1757217842395,1.53706963,203.15,203.09,1.26]
[1757217842597,8.01,203.14,203.1,4.40200547]
[1757217842895,8.01,203.14,203.09,1.26]
[1757217843093,1.53706963,203.15,203.1,4.40200547]
[1757217843395,8.01,203.14,203.08,1.26]
[1757217843598,8.01,203.14,203.09,9.13814234]
[1757217843897,8.01,203.14,203.1,4.40204239]
[1757217844097,8.01,203.14,203.08,1.26]
[1757217844297,1.53706963,203.15,203.09,9.13825831]
[1757217844496,1.53706963,203.15,203.1,4.40209826]
[1757217844697,8.01,203.14,203.08,1.26]
[1757217844895,8.01,203.14,203.09,9.13822045]
[1757217845096,1.53706963,203.15,203.1,4.40208002]
[1757217845298,8.01,203.14,203.08,1.26]
[1757217845499,8.01,203.14,203.09,9.13822039]
[1757217845698,1.53706963,203.15,203.1,4.40207999]
[1757217845898,8.01,203.14,203.08,1.26]
[1757217846095,1.53706963,203.15,203.09,9.14107364]
[1757217846296,8.01,203.14,203.08,1.26]
[1757217846496,8.01,203.14,203.09,4.40220047]
[1757217846695,8.01,203.14,203.08,1.26]
[1757217846999,1.53706963,203.15,203.09,5.66220047]
[1757217847198,1.53706963,203.15,203.09,1.26]
[1757217847590,8.01,203.14,203.09,1.26]
[1757217847797,1.53706963,203.15,203.09,1.26]
[1757217847998,1.53706963,203.15,203.1,4.40209744]
[1757217848199,1.53706963,203.15,203.09,1.26]
[1757217848494,8.01,203.14,203.1,4.40209741]
[1757217848698,8.01,203.14,203.09,1.26]
[1757217848896,1.53706963,203.15,203.1,4.40209741]